[Event "Paracin Open 2020"]
[Site "Paracin"]
[Date "2020.07.03"]
[Round "1.3"]
[White "Mendonca, Leon Luke"]
[Black "Ratkovic, Petar"]
[Result "1-0"]
[ECO "A06"]
[WhiteElo "2470"]
[BlackElo "1944"]
[Annotator "ChessBase"]
[PlyCount "49"]
[EventDate "2020.07.03"]
[EventType "swiss"]
[EventCountry "SRB"]
[SourceTitle "playchess.com"]
[Source "ChessBase"]
[SourceQuality "1"]
[TimeControl "5400+30"]

1. Nf3 {[%emt 0:00:20]} d5 {[%emt 0:00:00]} 2. b3 {[%emt 0:00:17]} Nf6 {[%emt 0:00:34]} 3. Bb2 {[%emt 0:00:31]} e6 {[%emt 0:00:44]} 4. g3 {[%emt 0:00:47]} Be7 {[%emt 0:00:29]} 5. Bg2 {[%emt 0:00:05]} O-O {[%emt 0:01:48]} 6. O-O {[%emt 0:00:26]} b6 {[%emt 0:01:31]} 7. c4 {[%emt 0:00:28]} Bb7 {[%emt 0:00:49]} 8. cxd5 {[%emt 0:00:46]} exd5 {[%emt 0:01:06]} 9. d4 {[%emt 0:00:27]} c5 {[%emt 0:02:53]} 10. Nc3 {[%emt 0:01:59]} Nbd7 {[%emt 0:04:47]} 11. e3 {[%emt 0:02:28]} Rc8 {[%emt 0:08:16]} 12. Qe2 {[%emt 0:02:31]} Qc7 {[%emt 0:03:40]} 13. Rfd1 {[%emt 0:04:43]} Rfd8 {[%emt 0:01:31]} 14. Rac1 {[%emt 0:02:35]} Qb8 {[%emt 0:03:30]} 15. dxc5 {[%emt 0:11:43]} bxc5 {[%emt 0:01:31]} 16. Nh4 {[%emt 0:02:57]} Qa8 {[%emt 0:08:26]} 17. Nf5 {[%emt 0:07:09]} Bf8 {[%emt 0:00:31]} 18. Nxd5 {[%emt 0:02:59]} Nxd5 {[%emt 0:25:11]} 19. Nh6+ {[%emt 0:00:18]} Kh8 {[%emt 0:00:09]} 20. Qg4 {[%emt 0:04:04]} Re8 {[%emt 0:17:08]} 21. Nxf7+ {[%emt 0:01:54]} Kg8 {[%emt 0:00:08]} 22. Nd6 {[%emt 0:12:15]} Ne5 {[%emt 0:07:18]} 23. Bxe5 {[%emt 0:00:30]} Rxe5 {[%emt 0:00:29]} 24. Nxb7 {[%emt 0:00:08]} Rc7 {[%emt 0:04:46]} 25. Rxd5 {[%emt 0:00:26]} 1-0

[Event "Paracin Open 2020"]
[Site "Paracin"]
[Date "2020.07.03"]
[Round "1.5"]
[White "Ratkovic, Miloje"]
[Black "Mijajlovic, Jovan"]
[Result "1-0"]
[ECO "A50"]
[WhiteElo "2456"]
[BlackElo "1910"]
[Annotator "ChessBase"]
[PlyCount "93"]
[EventDate "2020.07.03"]
[EventType "swiss"]
[EventCountry "SRB"]
[SourceTitle "playchess.com"]
[Source "ChessBase"]
[SourceQuality "1"]
[TimeControl "5400+30"]

1. d4 {[%emt 0:00:15]} Nf6 {[%emt 0:00:00]} 2. c4 {[%emt 0:00:13]} b6 {[%emt 0:00:00]} 3. Nc3 {[%emt 0:00:14]} Bb7 {[%emt 0:00:00]} 4. Nf3 {[%emt 0:00:07]} e6 {[%emt 0:00:07]} 5. a3 {[%emt 0:00:05]} Be7 {[%emt 0:00:09]} 6. d5 {[%emt 0:00:07]} exd5 {[%emt 0:08:14]} 7. cxd5 {[%emt 0:00:07]} O-O {[%emt 0:00:06]} 8. e4 {[%emt 0:00:04]} Re8 {[%emt 0:02:19]} 9. Bd3 {[%emt 0:00:43]} d6 {[%emt 0:09:10]} 10. O-O {[%emt 0:00:29]} Nbd7 {[%emt 0:09:53]} 11. Nd4 {[%emt 0:00:17]} Bf8 {[%emt 0:04:04]} 12. Nf5 {[%emt 0:03:27]} c6 {[%emt 0:08:51]} 13. dxc6 {[%emt 0:08:09]} Bxc6 {[%emt 0:00:07]} 14. Re1 {[%emt 0:00:52]} Nc5 {[%emt 0:11:31]} 15. Bg5 {[%emt 0:02:30]} h6 {[%emt 0:00:53]} 16. Nd4 {[%emt 0:03:33]} Bb7 {[%emt 0:04:39]} 17. Bh4 {[%emt 0:07:49]} g5 {[%emt 0:03:18]} 18. Bg3 {[%emt 0:00:06]} Ncxe4 {[%emt 0:02:05]} 19. Nxe4 {[%emt 0:01:49]} Bxe4 {[%emt 0:03:41]} 20. Bb5 {[%emt 0:04:47]} Re7 {[%emt 0:06:19]} 21. Qd2 {[%emt 0:00:27]} a6 {[%emt 0:01:14]} 22. Bc4 {[%emt 0:03:03]} Rc7 {[%emt 0:08:18]} 23. Bd3 {[%emt 0:02:03]} Bxd3 {[%emt 0:02:12]} 24. Qxd3 {[%emt 0:00:05]} Nh5 {[%emt 0:00:20]} 25. Nf5 {[%emt 0:01:11]} Qf6 {[%emt 0:00:57]} 26. Ne3 {[%emt 0:14:07]} Qg6 {[%emt 0:03:15]} 27. Qxg6+ {[%emt 0:01:59]} fxg6 {[%emt 0:00:01]} 28. Nd5 {[%emt 0:00:01]} Rc2 {[%emt 0:00:30]} 29. Nxb6 {[%emt 0:01:31]} Rd8 {[%emt 0:04:43]} 30. b4 {[%emt 0:02:40]} Nxg3 {[%emt 0:00:33]} 31. hxg3 {[%emt 0:00:07]} d5 {[%emt 0:00:28]} 32. Rad1 {[%emt 0:02:28]} d4 {[%emt 0:00:18]} 33. Rd3 {[%emt 0:00:17]} Bg7 {[%emt 0:02:26]} 34. Kf1 {[%emt 0:05:04]} Kf7 {[%emt 0:01:58]} 35. Na4 {[%emt 0:00:53]} Re8 {[%emt 0:00:52]} 36. Rf3+ {[%emt 0:00:28]} Bf6 {[%emt 0:00:04]} 37. Rxf6+ {[%emt 0:00:53]} Kxf6 {[%emt 0:00:06]} 38. Rxe8 {[%emt 0:00:06]} d3 {[%emt 0:00:40]} 39. Ke1 {[%emt 0:00:30]} Ra2 {[%emt 0:00:06]} 40. Nc5 {[%emt 0:00:26]} Kf7 {[%emt 0:00:05]} 41. Rd8 {[%emt 0:01:17]} Ra1+ {[%emt 0:00:13]} 42. Kd2 {[%emt 0:00:06]} Ra2+ {[%emt 0:00:03]} 43. Kxd3 {[%emt 0:00:50]} Rxf2 {[%emt 0:00:07]} 44. Rd7+ {[%emt 0:00:40]} Ke8 {[%emt 0:00:22]} 45. Rd6 {[%emt 0:00:14]} Rxg2 {[%emt 0:00:05]} 46. Ne4 {[%emt 0:00:05]} h5 {[%emt 0:00:14]} 47. Rxg6 {[%emt 0:00:12]} 1-0

[Event "Paracin Open 2020"]
[Site "Paracin"]
[Date "2020.07.03"]
[Round "1.6"]
[White "Milic, Slobodan"]
[Black "Stankovic, Milos"]
[Result "0-1"]
[ECO "B51"]
[WhiteElo "1910"]
[BlackElo "2454"]
[Annotator "ChessBase"]
[PlyCount "54"]
[EventDate "2020.07.03"]
[EventType "swiss"]
[EventCountry "SRB"]
[SourceTitle "playchess.com"]
[Source "ChessBase"]
[SourceQuality "1"]
[TimeControl "5400+30"]

1. e4 c5 2. Nf3 d6 3. Bb5+ Nd7 4. c3 Ngf6 5. d3 a6 6. Ba4 e6 7. O-O Be7 8. Re1 O-O 9. Nbd2 b5 10. Bc2 Bb7 11. d4 cxd4 12. cxd4 e5 13. Nf1 Re8 14. Ng3 Rc8 15. Bb3 exd4 16. Ng5 Ne5 17. f4 Nc4 18. Kh1 h6 19. Nf3 d5 20. e5 Ne4 21. Nxe4 dxe4 22. Nxd4 Bb4 23. Rf1 Qb6 24. Nf5 Qg6 25. Nh4 Qe6 26. Qe2 Be7 27. Qf2 Qg4 0-1

[Event "Paracin Open 2020"]
[Site "Paracin"]
[Date "2020.07.03"]
[Round "1.7"]
[White "Ratkovic, Milovan"]
[Black "Slavic, Nikola"]
[Result "1-0"]
[ECO "A45"]
[WhiteElo "2435"]
[BlackElo "1907"]
[Annotator "ChessBase"]
[PlyCount "79"]
[EventDate "2020.07.03"]
[EventType "swiss"]
[EventCountry "SRB"]
[SourceTitle "playchess.com"]
[Source "ChessBase"]
[SourceQuality "1"]
[TimeControl "5400+30"]

1. d4 {[%emt 0:00:00]} Nf6 {[%emt 0:00:00]} 2. Bf4 {[%emt 0:00:00]} e6 {[%emt 0:00:00]} 3. e3 {[%emt 0:00:01]} d5 {[%emt 0:00:55]} 4. Nf3 {[%emt 0:00:38]} Be7 {[%emt 0:04:02]} 5. Bd3 {[%emt 0:00:58]} Nbd7 {[%emt 0:00:45]} 6. Nbd2 {[%emt 0:01:20]} Nh5 {[%emt 0:06:22]} 7. Qe2 {[%emt 0:00:44]} Nxf4 {[%emt 0:01:19]} 8. exf4 {[%emt 0:00:08]} g6 {[%emt 0:13:29]} 9. c3 {[%emt 0:00:58]} a5 {[%emt 0:03:31]} 10. O-O {[%emt 0:00:48]} O-O {[%emt 0:00:20]} 11. Rfe1 {[%emt 0:03:07]} Bf6 {[%emt 0:02:09]} 12. Nf1 {[%emt 0:01:59]} c5 {[%emt 0:04:02]} 13. Ne3 {[%emt 0:01:59]} c4 {[%emt 0:03:48]} 14. Bc2 {[%emt 0:00:40]} b5 {[%emt 0:00:34]} 15. g4 {[%emt 0:10:11]} Bb7 {[%emt 0:02:39]} 16. g5 {[%emt 0:04:15]} Bg7 {[%emt 0:00:15]} 17. Ng4 {[%emt 0:00:50]} Qc7 {[%emt 0:02:58]} 18. Qe3 {[%emt 0:07:59]} Rae8 {[%emt 0:04:50]} 19. Nfe5 {[%emt 0:08:20]} f5 {[%emt 0:16:54]} 20. Nxd7 {[%emt 0:01:18]} Qxd7 {[%emt 0:00:04]} 21. Ne5 {[%emt 0:00:33]} Qc7 {[%emt 0:00:48]} 22. Qg3 {[%emt 0:03:23]} Bxe5 {[%emt 0:05:30]} 23. Rxe5 {[%emt 0:01:07]} Qf7 {[%emt 0:04:55]} 24. h4 {[%emt 0:01:45]} Bc6 {[%emt 0:00:13]} 25. Kg2 {[%emt 0:01:51]} Kg7 {[%emt 0:02:05]} 26. h5 {[%emt 0:02:09]} Rh8 {[%emt 0:00:27]} 27. Rh1 {[%emt 0:02:50]} Qd7 {[%emt 0:05:10]} 28. Ree1 {[%emt 0:01:58]} Qd6 {[%emt 0:01:26]} 29. Rh4 {[%emt 0:00:58]} b4 {[%emt 0:00:30]} 30. Reh1 {[%emt 0:00:59]} Qb8 {[%emt 0:00:34]} 31. Qh2 {[%emt 0:03:43]} h6 {[%emt 0:09:36]} 32. hxg6 {[%emt 0:14:09]} h5 {[%emt 0:00:07]} 33. Qg3 {[%emt 0:00:13]} Kxg6 {[%emt 0:02:33]} 34. Qf3 {[%emt 0:04:36]} Rh7 {[%emt 0:01:23]} 35. Rxh5 {[%emt 0:00:23]} Reh8 {[%emt 0:00:09]} 36. Rxh7 {[%emt 0:00:26]} Rxh7 {[%emt 0:00:01]} 37. Rxh7 {[%emt 0:00:21]} Kxh7 {[%emt 0:00:02]} 38. Qh5+ {[%emt 0:00:12]} Kg7 {[%emt 0:01:41]} 39. Qh6+ {[%emt 0:00:07]} Kg8 {[%emt 0:00:17]} 40. Qxe6+ {[%emt 0:00:10]} 1-0

[Event "Paracin Open 2020"]
[Site "Paracin"]
[Date "2020.07.03"]
[Round "1.8"]
[White "Popovic, Mladen D"]
[Black "Kosic, Dragan"]
[Result "0-1"]
[ECO "C11"]
[WhiteElo "1906"]
[BlackElo "2429"]
[Annotator "ChessBase"]
[PlyCount "56"]
[EventDate "2020.07.03"]
[EventType "swiss"]
[EventCountry "SRB"]
[SourceTitle "playchess.com"]
[Source "ChessBase"]
[SourceQuality "1"]
[TimeControl "5400+30"]

1. e4 e6 2. d4 d5 3. Nc3 Nf6 4. Bg5 dxe4 5. Nxe4 Be7 6. Bxf6 gxf6 7. Nf3 a6 8. Qd2 b5 9. c4 Bb7 10. Nc5 Bxf3 11. gxf3 Nc6 12. O-O-O Qxd4 13. Qxd4 Nxd4 14. Nxa6 Rxa6 15. Rxd4 Rxa2 16. cxb5 Bc5 17. Rd2 Ra1+ 18. Kc2 Ke7 19. Rd1 Rxd1 20. Kxd1 Bxf2 21. Bd3 f5 22. Ke2 Bb6 23. f4 Rg8 24. Kf3 Rd8 25. Rd1 Rd4 26. b3 Bc5 27. Bc2 Rb4 28. Re1 Bd6 0-1

[Event "Paracin Open 2020"]
[Site "Paracin"]
[Date "2020.07.03"]
[Round "1.10"]
[White "Radojkovic, Stefan"]
[Black "Martic, Ivan"]
[Result "0-1"]
[ECO "A05"]
[WhiteElo "1898"]
[BlackElo "2386"]
[Annotator "ChessBase"]
[PlyCount "66"]
[EventDate "2020.07.03"]
[EventType "swiss"]
[EventCountry "SRB"]
[SourceTitle "playchess.com"]
[Source "ChessBase"]
[SourceQuality "1"]
[TimeControl "5400+30"]

1. Nf3 {[%emt 0:00:00]} Nf6 {[%emt 0:00:00]} 2. c4 {[%emt 0:00:07]} g6 {[%emt 0:00:10]} 3. b3 {[%emt 0:01:38]} Bg7 {[%emt 0:00:12]} 4. Bb2 {[%emt 0:00:07]} O-O {[%emt 0:00:09]} 5. e3 {[%emt 0:02:26]} d6 {[%emt 0:00:33]} 6. d3 {[%emt 0:06:15]} e5 {[%emt 0:04:26]} 7. Nbd2 {[%emt 0:00:35]} c5 {[%emt 0:04:37]} 8. Be2 {[%emt 0:02:33]} Nc6 {[%emt 0:00:15]} 9. a3 {[%emt 0:04:25]} Ne8 {[%emt 0:04:07]} 10. Qc2 {[%emt 0:06:10]} f5 {[%emt 0:00:26]} 11. O-O {[%emt 0:11:54]} g5 {[%emt 0:00:44]} 12. Rfc1 {[%emt 0:01:48]} g4 {[%emt 0:00:40]} 13. Ne1 {[%emt 0:00:08]} f4 {[%emt 0:09:25]} 14. exf4 {[%emt 0:10:05]} exf4 {[%emt 0:00:58]} 15. Bxg7 {[%emt 0:00:29]} Nxg7 {[%emt 0:01:27]} 16. Qd1 {[%emt 0:00:49]} h5 {[%emt 0:07:35]} 17. Nc2 {[%emt 0:05:38]} Bf5 {[%emt 0:01:43]} 18. Ne4 {[%emt 0:03:28]} Ne6 {[%emt 0:03:19]} 19. f3 {[%emt 0:04:52]} g3 {[%emt 0:08:03]} 20. hxg3 {[%emt 0:02:03]} fxg3 {[%emt 0:00:13]} 21. Nxg3 {[%emt 0:03:24]} Qg5 {[%emt 0:03:10]} 22. Ne4 {[%emt 0:09:56]} Bxe4 {[%emt 0:05:02]} 23. dxe4 {[%emt 0:02:18]} Nf4 {[%emt 0:00:23]} 24. Bf1 {[%emt 0:01:57]} Qg3 {[%emt 0:06:09]} 25. Kh1 {[%emt 0:02:35]} Qh4+ {[%emt 0:01:28]} 26. Kg1 {[%emt 0:00:23]} Ne5 {[%emt 0:00:39]} 27. Ne1 {[%emt 0:03:14]} Qg3 {[%emt 0:04:55]} 28. Kh1 {[%emt 0:01:35]} Rf6 {[%emt 0:07:44]} 29. Ra2 {[%emt 0:00:34]} Ng4 {[%emt 0:05:04]} 30. fxg4 {[%emt 0:02:46]} hxg4 {[%emt 0:01:20]} 31. Bd3 {[%emt 0:02:11]} Raf8 {[%emt 0:01:10]} 32. Nf3 {[%emt 0:01:39]} gxf3 {[%emt 0:00:28]} 33. Qxf3 {[%emt 0:00:42]} Rh6+ {[%emt 0:00:13]} 0-1

[Event "Paracin Open 2020"]
[Site "Paracin"]
[Date "2020.07.03"]
[Round "1.11"]
[White "Abramovic, Bosko"]
[Black "Djordjevic, Miroslav"]
[Result "1-0"]
[ECO "A11"]
[WhiteElo "2351"]
[BlackElo "1889"]
[Annotator "ChessBase"]
[PlyCount "85"]
[EventDate "2020.07.03"]
[EventType "swiss"]
[EventCountry "SRB"]
[SourceTitle "playchess.com"]
[Source "ChessBase"]
[SourceQuality "1"]
[TimeControl "5400+30"]

1. c4 c6 2. Nc3 d5 3. cxd5 cxd5 4. d4 Nf6 5. Nf3 Nc6 6. Bf4 Qb6 7. Na4 Qa5+ 8. Bd2 Qd8 9. e3 e6 10. Bd3 Bd6 11. O-O O-O 12. Rc1 Qe7 13. Nc3 e5 14. dxe5 Nxe5 15. Nxe5 Bxe5 16. h3 Bd7 17. Qe2 a6 18. Rfd1 Bc6 19. Be1 Rfe8 20. Bc2 Rad8 21. Bb3 d4 22. exd4 Bxd4 23. Qxe7 Rxe7 24. Na4 Rdd7 25. Bc3 Bxc3 26. Rxd7 Nxd7 27. Nxc3 Nf6 28. Nd5 Nxd5 29. Bxd5 Rc7 30. f4 Kf8 31. Bxc6 bxc6 32. Kf2 Ke7 33. Ke3 Kd6 34. Rc4 Rb7 35. b3 Rb5 36. Rd4+ Kc7 37. Kd3 Rc5 38. Re4 Kd7 39. Rc4 Ra5 40. a4 Rd5+ 41. Rd4 a5 42. Rxd5+ cxd5 43. Kc3 1-0

[Event "Paracin Open 2020"]
[Site "Paracin"]
[Date "2020.07.03"]
[Round "1.15"]
[White "Todorovic, Nenad I"]
[Black "Tosic, Dragoljub"]
[Result "1-0"]
[ECO "B08"]
[WhiteElo "2295"]
[BlackElo "1857"]
[Annotator "RC"]
[PlyCount "85"]
[EventDate "2020.07.03"]
[EventType "swiss"]
[EventCountry "SRB"]
[SourceTitle "playchess.com"]
[Source "ChessBase"]
[SourceQuality "1"]
[TimeControl "5400+30"]

1. e4 d6 2. d4 Nf6 3. Nc3 g6 4. Nf3 Bg7 5. h3 O-O 6. Be3 c6 7. a4 Qa5 8. Nd2 e5 9. dxe5 dxe5 10. Nc4 Qc7 11. Qd6 Ne8 12. Qxc7 Nxc7 13. Bc5 Re8 14. Nd6 Rd8 15. Bc4 Ne6 16. Bxe6 fxe6 17. Nxc8 Rxc8 18. O-O-O Na6 19. Be3 Bf8 20. Bg5 Rc7 21. Rd2 h6 22. Be3 b6 23. Rhd1 g5 24. h4 Be7 25. f3 Kf7 26. Rh1 Rd8 27. hxg5 Rxd2 28. g6+ Kg7 29. Bxh6+ Kxg6 30. Bxd2 Bf8 31. Nd1 Nc5 32. b3 Nd7 33. Ne3 Nf6 34. Bc3 Rd7 35. Nc4 Bh6+ 36. Kb1 Rc7 37. Nxe5+ Kh7 38. Bd2 Ng8 39. Bxh6 Rc8 40. Bf8+ Nh6 41. Rxh6+ Kg8 42. Be7 Kg7 43. Rg6+ 1-0

[Event "Paracin Open 2020"]
[Site "Paracin"]
[Date "2020.07.04"]
[Round "3.3"]
[White "Mendonca, Leon Luke"]
[Black "Pastar, Slaven"]
[Result "1-0"]
[ECO "A05"]
[WhiteElo "2470"]
[BlackElo "2323"]
[Annotator "RC"]
[PlyCount "159"]
[EventDate "2020.07.03"]
[EventType "swiss"]
[EventCountry "SRB"]
[SourceTitle "playchess.com"]
[Source "ChessBase"]
[SourceQuality "1"]
[TimeControl "5400+30"]

1. Nf3 {[%emt 0:00:00]} Nf6 {[%emt 0:00:42]} 2. g3 {[%emt 0:00:05]} e6 {[%emt 0:01:16]} 3. Bg2 {[%emt 0:00:20]} d5 {[%emt 0:00:32]} 4. O-O {[%emt 0:00:28]} Be7 {[%emt 0:00:02]} 5. c4 {[%emt 0:00:33]} O-O {[%emt 0:00:31]} 6. b3 {[%emt 0:00:48]} c5 {[%emt 0:08:10]} 7. Bb2 {[%emt 0:00:45]} Nc6 {[%emt 0:00:21]} 8. cxd5 {[%emt 0:03:45]} exd5 {[%emt 0:02:16]} 9. d4 {[%emt 0:01:02]} Re8 {[%emt 0:06:09]} 10. Nc3 {[%emt 0:02:26]} Bg4 {[%emt 0:02:43]} 11. dxc5 {[%emt 0:03:39]} Bxc5 {[%emt 0:01:50]} 12. Rc1 {[%emt 0:01:22]} a6 {[%emt 0:12:27]} 13. h3 {[%emt 0:12:49]} Bh5 {[%emt 0:14:23]} 14. g4 {[%emt 0:07:19]} Bg6 {[%emt 0:00:16]} 15. g5 {[%emt 0:00:17]} Nh5 {[%emt 0:05:02]} 16. Nxd5 {[%emt 0:03:06]} Ba7 {[%emt 0:01:25]} 17. e3 {[%emt 0:02:14]} Rc8 {[%emt 0:05:14]} 18. h4 {[%emt 0:13:29]} Qa5 {[%emt 0:02:57]} 19. Nd2 {[%emt 0:06:03]} Qxa2 {[%emt 0:07:05]} 20. Nc4 {[%emt 0:04:37]} Na5 {[%emt 0:01:31]} 21. Ra1 {[%emt 0:01:32]} Qxb3 {[%emt 0:00:44]} 22. Nd6 {[%emt 0:00:13]} Qxd1 {[%emt 0:16:37]} 23. Rfxd1 {[%emt 0:00:14]} Nc6 {[%emt 0:02:01]} 24. Nxe8 {[%emt 0:01:04]} Rxe8 {[%emt 0:00:11]} 25. Nc7 {[%emt 0:00:15]} Rc8 {[%emt 0:01:07]} 26. Nxa6 {[%emt 0:00:11]} h6 {[%emt 0:02:33]} 27. gxh6 {[%emt 0:04:14]} Ne7 {[%emt 0:04:42]} 28. Bxb7 {[%emt 0:01:35]} Rc2 {[%emt 0:00:11]} 29. Bxg7 {[%emt 0:00:57]} Nxg7 {[%emt 0:00:05]} 30. hxg7 {[%emt 0:00:28]} Nf5 {[%emt 0:01:15]} 31. Nb4 {[%emt 0:00:15]} Rb2 {[%emt 0:00:31]} 32. Rxa7 {[%emt 0:05:22]} Rxb4 {[%emt 0:00:02]} 33. Rd7 {[%emt 0:01:25]} Rxh4 {[%emt 0:00:57]} 34. Bd5 {[%emt 0:01:10]} Nh6 {[%emt 0:00:04]} 35. Bf3 {[%emt 0:01:22]} Rb4 {[%emt 0:00:19]} 36. Rd4 {[%emt 0:00:38]} Rb6 {[%emt 0:00:24]} 37. Be4 {[%emt 0:00:21]} Nf5 {[%emt 0:01:14]} 38. Rd5 {[%emt 0:00:41]} Nxe3 {[%emt 0:00:29]} 39. Ra8+ {[%emt 0:10:16]} Kxg7 {[%emt 0:00:14]} 40. Rg5 {[%emt 0:00:11]} Nc4 {[%emt 0:00:55]} 41. Bxg6 {[%emt 0:02:26]} fxg6 {[%emt 0:00:12]} 42. Ra7+ {[%emt 0:02:18]} Kf6 {[%emt 0:00:19]} 43. Rc5 {[%emt 0:00:06]} Nd6 {[%emt 0:00:46]} 44. Rca5 {[%emt 0:00:26]} Rb1+ {[%emt 0:00:33]} 45. Kg2 {[%emt 0:01:31]} Nf5 {[%emt 0:00:08]} 46. R7a6+ {[%emt 0:00:43]} Kg5 {[%emt 0:00:34]} 47. Rc6 {[%emt 0:00:29]} Kf4 {[%emt 0:00:50]} 48. Rc4+ {[%emt 0:03:45]} Kg5 {[%emt 0:00:02]} 49. Ra3 {[%emt 0:01:07]} Rb2 {[%emt 0:00:52]} 50. Rh3 {[%emt 0:00:11]} Ra2 {[%emt 0:00:39]} 51. Rb4 {[%emt 0:00:00]} Rc2 {[%emt 0:00:22]} 52. Ra4 {[%emt 0:00:01]} Rb2 {[%emt 0:00:12]} 53. Rh8 {[%emt 0:00:18]} Rc2 {[%emt 0:00:39]} 54. Rf8 {[%emt 0:02:57]} Rb2 {[%emt 0:00:39]} 55. Ra1 {[%emt 0:01:07]} Rc2 {[%emt 0:00:36]} 56. Rg1 {[%emt 0:00:28]} Kf4 {[%emt 0:00:35]} 57. Rf6 {[%emt 0:02:03]} g5 {[%emt 0:00:31]} 58. Ra1 {[%emt 0:00:46]} Ke5 {[%emt 0:00:15]} 59. Rf8 {[%emt 0:00:10]} Nh4+ {[%emt 0:00:39]} 60. Kg3 {[%emt 0:00:16]} Ng6 {[%emt 0:00:32]} 61. Ra5+ {[%emt 0:00:36]} Ke6 {[%emt 0:00:18]} 62. Rf3 {[%emt 0:00:30]} Nh4 {[%emt 0:00:47]} 63. Rf8 {[%emt 0:00:25]} Ng6 {[%emt 0:00:13]} 64. Ra6+ {[%emt 0:00:17]} Ke7 {[%emt 0:00:01]} 65. Rf5 {[%emt 0:00:33]} Rc3+ {[%emt 0:00:41]} 66. Kg4 {[%emt 0:00:50]} Nf4 {[%emt 0:00:49]} 67. Kxg5 {[%emt 0:00:38]} Ne6+ {[%emt 0:00:22]} 68. Kg4 {[%emt 0:00:25]} Rc4+ {[%emt 0:00:07]} 69. Kg3 {[%emt 0:00:15]} Re4 {[%emt 0:00:12]} 70. Rh5 {[%emt 0:00:21]} Kf6 {[%emt 0:00:45]} 71. Rh6+ {[%emt 0:00:10]} Kf7 {[%emt 0:00:13]} 72. Rhxe6 {[%emt 0:00:25]} Rxe6 {[%emt 0:00:02]} 73. Rxe6 {[%emt 0:00:01]} Kxe6 {[%emt 0:00:05]} 74. Kg4 {[%emt 0:00:07]} Ke5 {[%emt 0:00:10]} 75. Kg5 {[%emt 0:00:07]} Ke6 {[%emt 0:00:03]} 76. f3 {[%emt 0:00:17]} Ke5 {[%emt 0:00:05]} 77. f4+ {[%emt 0:00:03]} Ke6 {[%emt 0:00:03]} 78. Kg6 {[%emt 0:00:04]} Ke7 {[%emt 0:00:05]} 79. f5 {[%emt 0:00:09]} Kf8 {[%emt 0:00:05]} 80. Kf6 1-0

[Event "Paracin Open 2020"]
[Site "Paracin"]
[Date "2020.07.04"]
[Round "3.4"]
[White "Formento, Paolo"]
[Black "Cabarkapa, Novak"]
[Result "0-1"]
[ECO "E91"]
[WhiteElo "2294"]
[BlackElo "2459"]
[Annotator "ChessBase"]
[PlyCount "102"]
[EventDate "2020.07.03"]
[EventType "swiss"]
[EventCountry "SRB"]
[SourceTitle "playchess.com"]
[Source "ChessBase"]
[SourceQuality "1"]
[TimeControl "5400+30"]

1. d4 {[%emt 0:00:00]} Nf6 {[%emt 0:01:33]} 2. c4 {[%emt 0:04:40]} g6 {[%emt 0:00:17]} 3. Nc3 {[%emt 0:00:13]} Bg7 {[%emt 0:00:10]} 4. e4 {[%emt 0:00:06]} d6 {[%emt 0:00:11]} 5. Nf3 {[%emt 0:00:24]} O-O {[%emt 0:00:18]} 6. Be2 {[%emt 0:00:06]} Na6 {[%emt 0:00:18]} 7. O-O {[%emt 0:00:41]} e5 {[%emt 0:00:11]} 8. dxe5 {[%emt 0:00:50]} dxe5 {[%emt 0:00:09]} 9. Be3 {[%emt 0:00:07]} Ng4 {[%emt 0:00:41]} 10. Bg5 {[%emt 0:00:35]} f6 {[%emt 0:00:27]} 11. Bd2 {[%emt 0:00:43]} Nh6 {[%emt 0:00:59]} 12. Rb1 {[%emt 0:00:26]} Nc5 {[%emt 0:06:56]} 13. Be3 {[%emt 0:08:07]} Ne6 {[%emt 0:06:59]} 14. h3 {[%emt 0:01:15]} Qe7 {[%emt 0:05:32]} 15. b4 {[%emt 0:06:04]} Nf7 {[%emt 0:09:55]} 16. Nd5 {[%emt 0:17:23]} Qd8 {[%emt 0:03:51]} 17. b5 {[%emt 0:23:05]} f5 {[%emt 0:17:07]} 18. Bc1 {[%emt 0:02:15]} fxe4 {[%emt 0:02:31]} 19. Nd2 {[%emt 0:00:06]} Nd6 {[%emt 0:05:55]} 20. Ba3 {[%emt 0:01:44]} Nd4 {[%emt 0:04:46]} 21. Bxd6 {[%emt 0:10:20]} cxd6 {[%emt 0:01:01]} 22. Nxe4 {[%emt 0:00:18]} Bf5 {[%emt 0:02:51]} 23. f3 {[%emt 0:06:37]} Kh8 {[%emt 0:06:16]} 24. Bd3 {[%emt 0:01:59]} Bh6 {[%emt 0:04:11]} 25. Rb2 {[%emt 0:07:45]} Qd7 {[%emt 0:00:34]} 26. Kh2 {[%emt 0:04:06]} Rf7 {[%emt 0:01:28]} 27. Qe1 {[%emt 0:00:27]} Qd8 {[%emt 0:02:48]} 28. Qb4 {[%emt 0:02:51]} Rd7 {[%emt 0:06:18]} 29. Ndf6 {[%emt 0:00:45]} Rg7 {[%emt 0:02:56]} 30. Ng4 {[%emt 0:00:20]} Bg5 {[%emt 0:01:10]} 31. Rbf2 {[%emt 0:00:41]} h5 {[%emt 0:01:06]} 32. Nxg5 {[%emt 0:00:29]} Bxd3 {[%emt 0:01:09]} 33. Rd1 {[%emt 0:00:31]} hxg4 {[%emt 0:01:30]} 34. Qd2 {[%emt 0:00:27]} g3+ {[%emt 0:01:00]} 35. Kxg3 {[%emt 0:00:05]} Bxc4 {[%emt 0:00:25]} 36. f4 {[%emt 0:00:23]} Qe7 {[%emt 0:00:47]} 37. Kh2 {[%emt 0:00:58]} Rf8 {[%emt 0:01:58]} 38. Re1 {[%emt 0:00:10]} Ne6 {[%emt 0:01:37]} 39. Nxe6 {[%emt 0:00:52]} Qxe6 {[%emt 0:01:03]} 40. fxe5 {[%emt 0:00:07]} Rxf2 {[%emt 0:00:06]} 41. Qxf2 {[%emt 0:00:05]} Rf7 {[%emt 0:00:27]} 42. Qd4 {[%emt 0:01:09]} d5 {[%emt 0:00:51]} 43. Qxa7 {[%emt 0:00:33]} Bxb5 {[%emt 0:00:15]} 44. Qe3 {[%emt 0:00:40]} Kg7 {[%emt 0:00:17]} 45. Qd4 {[%emt 0:00:18]} Bc6 {[%emt 0:00:23]} 46. Re2 {[%emt 0:00:42]} Kg8 {[%emt 0:00:39]} 47. g4 {[%emt 0:00:30]} g5 {[%emt 0:00:32]} 48. Qc5 {[%emt 0:00:31]} Rf4 {[%emt 0:00:39]} 49. Qb6 {[%emt 0:00:09]} Qe7 {[%emt 0:00:39]} 50. Qb1 {[%emt 0:00:33]} Re4 {[%emt 0:00:25]} 51. Rxe4 {[%emt 0:00:14]} dxe4 {[%emt 0:00:06]} 0-1